[Event "GER-ch Blitz 2019"]
[Site "Magdeburg"]
[Date "2019.05.25"]
[Round "7.7"]
[White "Schmaltz, Roland"]
[Black "Koch, Thomas"]
[Result "0-1"]
[ECO "B90"]
[WhiteElo "2461"]
[BlackElo "2474"]
[Annotator "ChessBase"]
[PlyCount "120"]
[EventDate "2019.05.25"]
[EventType "tourn"]
[EventCountry "GER"]
[Tiebreak "Number of wins+Number of black wins"]
[SourceTitle "playchess.com"]
[Source "ChessBase"]
[SourceQuality "1"]
[TimeControl "180+2"]

1. e4 {[%emt 0:00:00]} c5 {[%emt 0:00:00]} 2. Nf3 {[%emt 0:00:00]} d6 {[%emt 0:
00:00]} 3. d4 {[%emt 0:00:00]} cxd4 {[%emt 0:00:00]} 4. Nxd4 {[%emt 0:00:00]}
Nf6 {[%emt 0:00:01]} 5. Nc3 {[%emt 0:00:01]} a6 {[%emt 0:00:01]} 6. Be3 {
[%emt 0:00:01]} Ng4 {[%emt 0:00:00]} 7. Bg5 {[%emt 0:00:00]} h6 {[%emt 0:00:01]
} 8. Bc1 {[%emt 0:00:00]} Nc6 {[%emt 0:00:07]} 9. Nxc6 {[%emt 0:00:04]} bxc6 {
[%emt 0:00:01]} 10. Bc4 {[%emt 0:00:01]} Nf6 {[%emt 0:00:08]} 11. e5 {[%emt 0:
00:02]} d5 {[%emt 0:00:12]} 12. exf6 {[%emt 0:00:08]} dxc4 {[%emt 0:00:01]} 13.
Qxd8+ Kxd8 {[%emt 0:00:00]} 14. fxe7+ {[%emt 0:00:07]} Bxe7 {[%emt 0:00:03]}
15. Bf4 {[%emt 0:00:02]} Be6 {[%emt 0:00:24]} 16. O-O-O+ {[%emt 0:00:01]} Ke8 {
[%emt 0:00:01]} 17. Bd6 {[%emt 0:00:20]} Rd8 {[%emt 0:00:15]} 18. Bxe7 {
[%emt 0:00:06]} Kxe7 {[%emt 0:00:02]} 19. Na4 {[%emt 0:00:04]} Rd5 {[%emt 0:00:
06]} 20. Rhe1 {[%emt 0:00:05]} Rb8 {[%emt 0:00:07]} 21. Nc3 {[%emt 0:00:04]}
Rxd1+ {[%emt 0:00:04]} 22. Rxd1 {[%emt 0:00:02]} g5 {[%emt 0:00:03]} 23. Re1 {
[%emt 0:00:19]} Rd8 {[%emt 0:00:14]} 24. Re5 {[%emt 0:00:08]} Rd4 {[%emt 0:00:
09]} 25. g3 {[%emt 0:00:12]} f6 {[%emt 0:00:10]} 26. Ra5 {[%emt 0:00:01]} Bc8 {
[%emt 0:00:01]} 27. Nd1 {[%emt 0:00:04]} f5 {[%emt 0:00:11]} 28. c3 {[%emt 0:
00:22]} Re4 {[%emt 0:00:10]} 29. Kd2 {[%emt 0:00:02]} f4 {[%emt 0:00:03]} 30.
f3 {[%emt 0:00:11]} Re6 {[%emt 0:00:05]} 31. gxf4 {[%emt 0:00:05]} gxf4 {
[%emt 0:00:04]} 32. Rc5 {[%emt 0:00:03]} Rd6+ {[%emt 0:00:06]} 33. Ke2 {
[%emt 0:00:03]} Re6+ {[%emt 0:00:01]} 34. Kd2 {[%emt 0:00:09]} Rd6+ {[%emt 0:
00:02]} 35. Kc1 {[%emt 0:00:01]} Rd3 {[%emt 0:00:05]} 36. Rxc6 {[%emt 0:00:09]}
Be6 {[%emt 0:00:01]} 37. Rxa6 {[%emt 0:00:03]} Rxf3 {[%emt 0:00:01]} 38. a4 {
[%emt 0:00:03]} Rf1 {[%emt 0:00:03]} 39. Kd2 {[%emt 0:00:01]} Rh1 {[%emt 0:00:
01]} 40. Nf2 {[%emt 0:00:07]} Rxh2 {[%emt 0:00:12]} 41. Ke1 {[%emt 0:00:00]}
Rg2 {[%emt 0:00:09]} 42. Kf1 {[%emt 0:00:02]} Rg6 {[%emt 0:00:21]} 43. Ra7+ {
[%emt 0:00:01]} Kd6 {[%emt 0:00:02]} 44. a5 {[%emt 0:00:04]} Kc5 {[%emt 0:00:
05]} 45. Ne4+ {[%emt 0:00:06]} Kd5 {[%emt 0:00:06]} 46. Nf2 {[%emt 0:00:08]}
Kc6 {[%emt 0:00:06]} 47. Re7 {[%emt 0:00:13]} Bd5 {[%emt 0:00:05]} 48. a6 {
[%emt 0:00:02]} Kb5 {[%emt 0:00:10]} 49. a7 {[%emt 0:00:01]} Ra6 {[%emt 0:00:
02]} 50. Nh3 {[%emt 0:00:05]} f3 {[%emt 0:00:04]} 51. Nf4 {[%emt 0:00:01]} Bc6
{[%emt 0:00:03]} 52. Ne6 {[%emt 0:00:03]} Kb6 53. Nd4 {[%emt 0:00:05]} Bd5 {
[%emt 0:00:02]} 54. Re5 {[%emt 0:00:05]} Ba8 {[%emt 0:00:04]} 55. Kf2 {[%emt 0:
00:23]} Kxa7 {[%emt 0:00:02]} 56. Nxf3 {[%emt 0:00:02]} Rf6 {[%emt 0:00:01]}
57. Re3 {[%emt 0:00:01]} Kb6 {[%emt 0:00:02]} 58. Ke2 {[%emt 0:00:00]} Rxf3 {
[%emt 0:00:02]} 59. Rxf3 {[%emt 0:00:01]} Bxf3+ {[%emt 0:00:01]} 60. Kxf3 {
[%emt 0:00:02]} Kb5 {[%emt 0:00:00]} 0-1

[Event "GER-ch Blitz 2019"]
[Site "Magdeburg"]
[Date "2019.05.25"]
[Round "7.9"]
[White "Zuyev, Igor"]
[Black "Feuerstack, Aljoscha"]
[Result "1/2-1/2"]
[ECO "B23"]
[WhiteElo "2447"]
[BlackElo "2441"]
[Annotator "NA"]
[PlyCount "78"]
[EventDate "2019.05.25"]
[EventType "tourn"]
[EventCountry "GER"]
[Tiebreak "Number of wins+Number of black wins"]
[SourceTitle "playchess.com"]
[Source "ChessBase"]
[SourceQuality "1"]
[TimeControl "180+2"]

1. e4 {[%emt 0:00:00]} c5 {[%emt 0:00:00]} 2. Nc3 {[%emt 0:00:00]} e6 {[%emt 0:
00:02]} 3. f4 {[%emt 0:00:02]} d5 {[%emt 0:00:02]} 4. Nf3 {[%emt 0:00:04]} dxe4
{[%emt 0:00:01]} 5. Nxe4 {[%emt 0:00:02]} Nf6 {[%emt 0:00:04]} 6. Nxf6+ {
[%emt 0:00:17]} Qxf6 {[%emt 0:00:02]} 7. g3 {[%emt 0:00:04]} Nc6 {[%emt 0:00:
04]} 8. Bd3 {[%emt 0:00:05]} Bd6 {[%emt 0:00:06]} 9. c3 {[%emt 0:00:04]} b6 {
[%emt 0:00:11]} 10. O-O {[%emt 0:00:04]} Bb7 {[%emt 0:00:01]} 11. Re1 {[%emt 0:
00:04]} h6 {[%emt 0:00:25]} 12. Be4 {[%emt 0:00:06]} O-O {[%emt 0:00:06]} 13.
d4 {[%emt 0:00:03]} cxd4 {[%emt 0:00:20]} 14. Nxd4 {[%emt 0:00:06]} Bc5 {
[%emt 0:00:02]} 15. Be3 {[%emt 0:00:05]} Rac8 {[%emt 0:00:38]} 16. Bxc6 {
[%emt 0:00:07]} Bxc6 {[%emt 0:00:01]} 17. Nxc6 {[%emt 0:00:05]} Rxc6 {[%emt 0:
00:04]} 18. Qf3 {[%emt 0:00:04]} Bxe3+ {[%emt 0:00:07]} 19. Qxe3 {[%emt 0:00:
03]} Rd8 {[%emt 0:00:02]} 20. Rad1 {[%emt 0:00:14]} Rcd6 {[%emt 0:00:01]} 21.
Rxd6 {[%emt 0:00:05]} Rxd6 {[%emt 0:00:01]} 22. Qe4 {[%emt 0:00:03]} Qd8 {
[%emt 0:00:02]} 23. Re2 {[%emt 0:00:06]} Rd1+ {[%emt 0:00:10]} 24. Kg2 {
[%emt 0:00:04]} Ra1 {[%emt 0:00:04]} 25. a3 {[%emt 0:00:04]} Qd1 {[%emt 0:00:
05]} 26. Kh3 {[%emt 0:00:11]} g6 {[%emt 0:00:05]} 27. Qa8+ {[%emt 0:00:06]} Kg7
{[%emt 0:00:01]} 28. Qe4 {[%emt 0:00:04]} Qf1+ {[%emt 0:00:07]} 29. Kh4 {
[%emt 0:00:04]} Rd1 {[%emt 0:00:12]} 30. Qg2 {[%emt 0:00:07]} Qxg2 {[%emt 0:00:
07]} 31. Rxg2 {[%emt 0:00:01]} f5 {[%emt 0:00:20]} 32. Re2 {[%emt 0:00:05]} Kf6
{[%emt 0:00:00]} 33. Kh3 {[%emt 0:00:04]} g5 {[%emt 0:00:01]} 34. Kg2 {[%emt 0:
00:05]} Rd3 {[%emt 0:00:01]} 35. h4 {[%emt 0:00:06]} g4 {[%emt 0:00:09]} 36. h5
{[%emt 0:00:12]} Rd5 {[%emt 0:00:13]} 37. Kf2 {[%emt 0:00:05]} Rd3 {[%emt 0:00:
01]} 38. Kg2 {[%emt 0:00:05]} Rd5 {[%emt 0:00:00]} 39. Kf2 {[%emt 0:00:05]} Rd3
{[%emt 0:00:01]} 1/2-1/2

[Event "GER-ch Blitz 2019"]
[Site "Magdeburg"]
[Date "2019.05.25"]
[Round "7.10"]
[White "Voege, Tobias"]
[Black "Frischmann, Rick"]
[Result "0-1"]
[ECO "D07"]
[WhiteElo "2294"]
[BlackElo "2320"]
[Annotator "NA"]
[PlyCount "64"]
[EventDate "2019.05.25"]
[EventType "tourn"]
[EventCountry "GER"]
[Tiebreak "Number of wins+Number of black wins"]
[SourceTitle "playchess.com"]
[Source "ChessBase"]
[SourceQuality "1"]
[TimeControl "180+2"]

1. d4 {[%emt 0:00:00]} d5 {[%emt 0:00:00]} 2. c4 {[%emt 0:00:00]} Nc6 {[%emt 0:
00:00]} 3. Nf3 {[%emt 0:00:00]} Bg4 {[%emt 0:00:00]} 4. Nc3 {[%emt 0:00:01]} e6
{[%emt 0:00:01]} 5. cxd5 {[%emt 0:00:05]} exd5 {[%emt 0:00:01]} 6. Qb3 {
[%emt 0:00:03]} Bb4 {[%emt 0:00:05]} 7. Ne5 {[%emt 0:00:59]} Nxd4 {[%emt 0:00:
01]} 8. Qd1 {[%emt 0:00:06]} Nc6 {[%emt 0:00:06]} 9. Nxg4 {[%emt 0:00:06]} h5 {
[%emt 0:00:01]} 10. e3 {[%emt 0:00:25]} hxg4 {[%emt 0:00:09]} 11. Qxg4 {
[%emt 0:00:03]} Nf6 {[%emt 0:00:23]} 12. Qxg7 {[%emt 0:00:26]} Rg8 {[%emt 0:00:
01]} 13. Qh6 {[%emt 0:00:01]} Qe7 {[%emt 0:00:10]} 14. Bd2 {[%emt 0:00:20]} d4
{[%emt 0:00:03]} 15. Nb1 {[%emt 0:00:06]} O-O-O {[%emt 0:00:05]} 16. Bb5 {
[%emt 0:00:14]} Ne5 {[%emt 0:00:30]} 17. Qh3+ {[%emt 0:00:11]} Kb8 {[%emt 0:00:
00]} 18. a3 {[%emt 0:00:05]} Bxd2+ {[%emt 0:00:13]} 19. Nxd2 {[%emt 0:00:01]}
Qc5 {[%emt 0:00:22]} 20. Be2 {[%emt 0:00:05]} Qc2 {[%emt 0:00:50]} 21. Rd1 {
[%emt 0:00:01]} Nd3+ {[%emt 0:00:10]} 22. Bxd3 {[%emt 0:00:06]} Qxd3 {[%emt 0:
00:01]} 23. e4 {[%emt 0:00:03]} Qb5 {[%emt 0:00:04]} 24. Qf3 {[%emt 0:00:09]}
Nd7 {[%emt 0:00:15]} 25. Qe2 {[%emt 0:00:04]} d3 {[%emt 0:00:03]} 26. Qe3 {
[%emt 0:00:03]} Rxg2 {[%emt 0:00:01]} 27. b4 {[%emt 0:00:03]} Ne5 {[%emt 0:00:
02]} 28. Qh3 {[%emt 0:00:03]} Rdg8 {[%emt 0:00:01]} 29. Nb3 {[%emt 0:00:02]}
Qc4 {[%emt 0:00:02]} 30. Nc1 {[%emt 0:00:02]} Qxe4+ {[%emt 0:00:01]} 31. Kd2 {
[%emt 0:00:01]} Rxf2+ {[%emt 0:00:02]} 32. Kc3 {[%emt 0:00:01]} Qc4# {[%emt 0:
00:02] Kd4} 0-1

[Event "GER-ch Blitz 2019"]
[Site "Magdeburg"]
[Date "2019.05.25"]
[Round "7.11"]
[White "Hirneise, Jens"]
[Black "Braeuning, Rudolf Wilhelm"]
[Result "1-0"]
[ECO "B35"]
[WhiteElo "2375"]
[BlackElo "2285"]
[Annotator "NA"]
[PlyCount "98"]
[EventDate "2019.05.25"]
[EventType "tourn"]
[EventCountry "GER"]
[Tiebreak "Number of wins+Number of black wins"]
[SourceTitle "playchess.com"]
[Source "ChessBase"]
[SourceQuality "1"]
[TimeControl "180+2"]

1. e4 {[%emt 0:00:00]} c5 {[%emt 0:00:00]} 2. Nf3 {[%emt 0:00:00]} g6 {[%emt 0:
00:01]} 3. d4 {[%emt 0:00:00]} cxd4 4. Nxd4 Nc6 {[%emt 0:00:05]} 5. Nc3 {
[%emt 0:00:03]} Bg7 {[%emt 0:00:01]} 6. Be3 {[%emt 0:00:00]} Nf6 {[%emt 0:00:
02]} 7. Bc4 {[%emt 0:00:01]} O-O {[%emt 0:00:02]} 8. Bb3 {[%emt 0:00:01]} a5 {
[%emt 0:00:02]} 9. O-O {[%emt 0:00:02]} a4 10. Nxa4 {[%emt 0:00:01]} Nxe4 {
[%emt 0:00:02]} 11. c4 {[%emt 0:00:01]} Ra6 {[%emt 0:00:03]} 12. Re1 {[%emt 0:
00:03]} Nxd4 {[%emt 0:00:20]} 13. Bxd4 {[%emt 0:00:02]} Rd6 {[%emt 0:00:02]}
14. Rxe4 {[%emt 0:00:05]} e5 {[%emt 0:00:01]} 15. Nc3 {[%emt 0:01:05]} Rxd4 {
[%emt 0:00:06]} 16. Qe1 {[%emt 0:00:08]} d6 {[%emt 0:00:14]} 17. Nb5 {[%emt 0:
00:08]} d5 {[%emt 0:01:04]} 18. cxd5 {[%emt 0:00:19]} Rxe4 {[%emt 0:00:08]} 19.
Qxe4 {[%emt 0:00:02]} Bf5 {[%emt 0:00:03]} 20. Qe2 {[%emt 0:00:06]} Qb6 {
[%emt 0:00:31]} 21. Rd1 {[%emt 0:00:12]} h5 {[%emt 0:00:04]} 22. h3 {[%emt 0:
00:04]} Rd8 {[%emt 0:00:09]} 23. Nc3 {[%emt 0:00:09]} Qb4 {[%emt 0:00:11]} 24.
Qc4 {[%emt 0:00:12]} Qxc4 {[%emt 0:00:05]} 25. Bxc4 {[%emt 0:00:02]} e4 {
[%emt 0:00:01]} 26. Be2 {[%emt 0:00:30]} Rc8 {[%emt 0:00:07]} 27. g4 {[%emt 0:
00:05]} hxg4 {[%emt 0:00:08]} 28. hxg4 {[%emt 0:00:01]} Bd7 {[%emt 0:00:03]}
29. Nxe4 {[%emt 0:00:06]} Bxb2 {[%emt 0:00:04]} 30. Rb1 {[%emt 0:00:03]} Rc2 {
[%emt 0:00:09]} 31. Bd3 {[%emt 0:00:03]} Rc1+ {[%emt 0:00:02]} 32. Rxc1 {
[%emt 0:00:01]} Bxc1 {[%emt 0:00:01]} 33. Nf6+ {[%emt 0:00:01]} Kf8 {[%emt 0:
00:03]} 34. Nxd7+ {[%emt 0:00:01]} Ke7 {[%emt 0:00:01]} 35. Nc5 {[%emt 0:00:03]
} b6 {[%emt 0:00:01]} 36. Nb3 {[%emt 0:00:04]} Ba3 {[%emt 0:00:02]} 37. Kg2 {
[%emt 0:00:07]} Kd6 {[%emt 0:00:01]} 38. Be4 {[%emt 0:00:02]} Ke5 {[%emt 0:00:
04]} 39. Bf3 {[%emt 0:00:08]} Kf4 {[%emt 0:00:02]} 40. Nd2 {[%emt 0:00:05]} Bb4
{[%emt 0:00:02]} 41. Nc4 {[%emt 0:00:03]} Bc5 {[%emt 0:00:01]} 42. d6 {[%emt 0:
00:05]} Kg5 {[%emt 0:00:02]} 43. d7 {[%emt 0:00:02]} Be7 {[%emt 0:00:01]} 44.
Nxb6 {[%emt 0:00:01]} Bd8 {[%emt 0:00:02]} 45. Nc4 {[%emt 0:00:02]} Kf6 {
[%emt 0:00:01]} 46. a4 {[%emt 0:00:02]} Ke7 {[%emt 0:00:02]} 47. Bc6 {[%emt 0:
00:01]} Ke6 {[%emt 0:00:03]} 48. a5 {[%emt 0:00:01]} Kf6 {[%emt 0:00:03]} 49.
a6 {[%emt 0:00:01]} Bc7 1-0

[Event "GER-ch Blitz 2019"]
[Site "Magdeburg"]
[Date "2019.05.25"]
[Round "7.12"]
[White "Heistermann, Till"]
[Black "Stern, Rene"]
[Result "0-1"]
[ECO "A13"]
[WhiteElo "2181"]
[BlackElo "2538"]
[Annotator "ChessBase"]
[PlyCount "92"]
[EventDate "2019.05.25"]
[EventType "tourn"]
[EventCountry "GER"]
[Tiebreak "Number of wins+Number of black wins"]
[SourceTitle "playchess.com"]
[Source "ChessBase"]
[SourceQuality "1"]
[TimeControl "180+2"]

1. c4 {[%emt 0:00:00]} e6 {[%emt 0:00:00]} 2. Nf3 {[%emt 0:00:00]} d5 {[%emt 0:
00:00]} 3. g3 {[%emt 0:00:01]} Nf6 {[%emt 0:00:01]} 4. Bg2 {[%emt 0:00:00]} Be7
{[%emt 0:00:01]} 5. b3 {[%emt 0:00:01]} O-O {[%emt 0:00:01]} 6. Bb2 {[%emt 0:
00:01]} b6 {[%emt 0:00:01]} 7. O-O {[%emt 0:00:02]} Bb7 {[%emt 0:00:01]} 8. d3
{[%emt 0:00:01]} c5 {[%emt 0:00:01]} 9. Nbd2 {[%emt 0:00:01]} d4 {[%emt 0:00:
06]} 10. b4 {[%emt 0:00:02]} Nbd7 {[%emt 0:00:18]} 11. Rb1 {[%emt 0:00:10]} e5
{[%emt 0:00:10]} 12. bxc5 {[%emt 0:00:01]} bxc5 {[%emt 0:00:09]} 13. Nb3 {
[%emt 0:00:25]} Qc7 {[%emt 0:00:16]} 14. Bc1 {[%emt 0:00:05]} Rab8 {[%emt 0:00:
06]} 15. Bd2 {[%emt 0:00:02]} e4 {[%emt 0:00:11]} 16. Bf4 Bd6 17. Bxd6 {
[%emt 0:00:11]} Qxd6 {[%emt 0:00:01]} 18. Ne1 {[%emt 0:00:02]} Qc7 {[%emt 0:00:
16]} 19. Qd2 {[%emt 0:00:06]} Rfe8 {[%emt 0:00:03]} 20. Qa5 {[%emt 0:00:03]}
Qxa5 {[%emt 0:00:18]} 21. Nxa5 {[%emt 0:00:00]} Ba8 {[%emt 0:00:00]} 22. Nc2 {
[%emt 0:00:13]} Rb6 {[%emt 0:00:01]} 23. Nb3 {[%emt 0:00:40]} exd3 {[%emt 0:00:
06]} 24. exd3 {[%emt 0:00:02]} Bxg2 {[%emt 0:00:01]} 25. Kxg2 {[%emt 0:00:01]}
Re2 {[%emt 0:00:01]} 26. Rbc1 {[%emt 0:00:06]} Ng4 {[%emt 0:00:19]} 27. Kf3 {
[%emt 0:00:42]} Rxc2 {[%emt 0:00:01]} 28. Rxc2 {[%emt 0:00:01]} Nxh2+ {[%emt 0:
00:02]} 29. Kg2 {[%emt 0:00:01]} Nxf1 {[%emt 0:00:01]} 30. Kxf1 {[%emt 0:00:01]
} Kf8 {[%emt 0:00:02]} 31. Re2 {[%emt 0:00:09]} Re6 {[%emt 0:00:03]} 32. Rb2 {
[%emt 0:00:06]} Ke7 {[%emt 0:00:03]} 33. Nc1 {[%emt 0:00:15]} Rb6 {[%emt 0:00:
03]} 34. Re2+ {[%emt 0:00:04]} Kd6 {[%emt 0:00:01]} 35. Nb3 {[%emt 0:00:01]}
Nf6 {[%emt 0:00:17]} 36. Kg2 {[%emt 0:00:07]} Rb8 {[%emt 0:00:04]} 37. Kf3 {
[%emt 0:00:02]} h5 {[%emt 0:00:03]} 38. Rd2 {[%emt 0:00:13]} Re8 {[%emt 0:00:
10]} 39. Rb2 {[%emt 0:00:03]} Nd7 {[%emt 0:00:09]} 40. Kg2 {[%emt 0:00:03]} Nb6
{[%emt 0:00:03]} 41. Nd2 {[%emt 0:00:08]} Kc6 {[%emt 0:00:08]} 42. Ne4 f5 43.
Ng5 Na4 44. Rb5 Nc3 45. Ra5 Kb6 46. Ra3 Re2 0-1

[Event "GER-ch Blitz 2019"]
[Site "Magdeburg"]
[Date "2019.05.25"]
[Round "7.13"]
[White "Schulz, Karsten"]
[Black "Barzen, Pascal"]
[Result "1-0"]
[ECO "A05"]
[WhiteElo "2227"]
[BlackElo "2292"]
[Annotator "NA"]
[PlyCount "107"]
[EventDate "2019.05.25"]
[EventType "tourn"]
[EventCountry "GER"]
[Tiebreak "Number of wins+Number of black wins"]
[SourceTitle "playchess.com"]
[Source "ChessBase"]
[SourceQuality "1"]
[TimeControl "180+2"]

1. Nf3 {[%emt 0:00:00]} Nf6 {[%emt 0:00:00]} 2. g3 {[%emt 0:00:00]} e6 {
[%emt 0:00:00]} 3. Bg2 {[%emt 0:00:01]} d5 4. c4 Be7 {[%emt 0:00:01]} 5. b3 {
[%emt 0:00:01]} O-O {[%emt 0:00:02]} 6. O-O c5 7. Bb2 {[%emt 0:00:03]} Nc6 {
[%emt 0:00:01]} 8. e3 {[%emt 0:00:01]} b6 {[%emt 0:00:01]} 9. Nc3 {[%emt 0:00:
02]} Bb7 {[%emt 0:00:04]} 10. cxd5 {[%emt 0:00:02]} exd5 {[%emt 0:00:02]} 11.
d4 {[%emt 0:00:01]} Rc8 {[%emt 0:00:05]} 12. Rc1 {[%emt 0:00:02]} Re8 {[%emt 0:
00:07]} 13. Re1 {[%emt 0:00:01]} Bf8 {[%emt 0:00:03]} 14. Na4 {[%emt 0:00:07]}
Ne4 {[%emt 0:00:03]} 15. dxc5 {[%emt 0:00:10]} bxc5 {[%emt 0:00:27]} 16. Nd2 {
[%emt 0:00:23]} Nb4 {[%emt 0:00:14]} 17. Bf1 {[%emt 0:00:33]} Nxd2 {[%emt 0:00:
20]} 18. Qxd2 {[%emt 0:00:02]} Nxa2 {[%emt 0:00:17]} 19. Ra1 {[%emt 0:00:18]}
Nb4 {[%emt 0:00:01]} 20. Bg2 {[%emt 0:00:02]} Qd6 {[%emt 0:00:20]} 21. Red1 {
[%emt 0:00:05]} Red8 {[%emt 0:00:07]} 22. Rac1 {[%emt 0:00:11]} Ba6 {[%emt 0:
00:11]} 23. Ba3 {[%emt 0:00:16]} Qf6 {[%emt 0:00:57]} 24. Nxc5 {[%emt 0:00:27]}
Rxc5 {[%emt 0:00:10]} 25. Bxb4 {[%emt 0:00:04]} Rxc1 {[%emt 0:00:01]} 26. Rxc1
{[%emt 0:00:03]} Bxb4 {[%emt 0:00:08]} 27. Qxb4 {[%emt 0:00:01]} h6 {[%emt 0:
00:07]} 28. Rd1 {[%emt 0:00:05]} Qe6 {[%emt 0:00:02]} 29. Qd4 {[%emt 0:00:03]}
Bb7 {[%emt 0:00:01]} 30. Qxa7 {[%emt 0:00:07]} Bc6 {[%emt 0:00:00]} 31. Qb6 {
[%emt 0:00:03]} Qd7 {[%emt 0:00:06]} 32. Qd4 Qe6 33. b4 {[%emt 0:00:03]} Rb8 {
[%emt 0:00:01]} 34. Rb1 {[%emt 0:00:04]} g6 {[%emt 0:00:02]} 35. h4 {[%emt 0:
00:02]} h5 {[%emt 0:00:01]} 36. Rc1 {[%emt 0:00:02]} Qd6 {[%emt 0:00:01]} 37.
Rc5 {[%emt 0:00:03]} Ba8 {[%emt 0:00:02]} 38. b5 {[%emt 0:00:08]} Kh7 {[%emt 0:
00:02]} 39. Bxd5 {[%emt 0:00:05]} Bxd5 {[%emt 0:00:01]} 40. Qxd5 {[%emt 0:00:
06]} Qf6 {[%emt 0:00:04]} 41. Qe5 {[%emt 0:00:05]} Qb6 {[%emt 0:00:05]} 42. Rc7
{[%emt 0:00:08]} Kg8 {[%emt 0:00:00]} 43. Qe7 {[%emt 0:00:04]} Rf8 {[%emt 0:00:
02]} 44. Rb7 {[%emt 0:00:02]} Qa5 {[%emt 0:00:00]} 45. Qc5 {[%emt 0:00:07]}
Qe1+ {[%emt 0:00:01]} 46. Kg2 {[%emt 0:00:00]} Qb1 {[%emt 0:00:03]} 47. Re7 {
[%emt 0:00:05]} Rb8 {[%emt 0:00:05]} 48. Qd5 {[%emt 0:00:03]} Rf8 {[%emt 0:00:
04]} 49. Rd7 {[%emt 0:00:03]} Qb2 {[%emt 0:00:01]} 50. Qc6 {[%emt 0:00:02]} Rb8
{[%emt 0:00:01]} 51. Qd5 {[%emt 0:00:03]} Rf8 {[%emt 0:00:01]} 52. Rd6 {
[%emt 0:00:02]} Rb8 {[%emt 0:00:01]} 53. Rxg6+ {[%emt 0:00:01]} Kh7 {[%emt 0:
00:02]} 54. Qxh5# {[%emt 0:00:04]} 1-0

[Event "GER-ch Blitz 2019"]
[Site "Magdeburg"]
[Date "2019.05.25"]
[Round "7.14"]
[White "Hebbinghaus, Holger"]
[Black "Carow, Johannes"]
[Result "0-1"]
[ECO "B13"]
[WhiteElo "2310"]
[BlackElo "2445"]
[Annotator "NA"]
[PlyCount "94"]
[EventDate "2019.05.25"]
[EventType "tourn"]
[EventCountry "GER"]
[Tiebreak "Number of wins+Number of black wins"]
[SourceTitle "playchess.com"]
[Source "ChessBase"]
[SourceQuality "1"]
[TimeControl "180+2"]

1. e4 {[%emt 0:00:00]} c6 {[%emt 0:00:00]} 2. d4 {[%emt 0:00:01]} d5 {[%emt 0:
00:00]} 3. exd5 {[%emt 0:00:01]} cxd5 {[%emt 0:00:00]} 4. Bf4 Nf6 {[%emt 0:00:
12]} 5. c3 {[%emt 0:00:07]} Nc6 {[%emt 0:00:04]} 6. Nd2 {[%emt 0:00:01]} g6 {
[%emt 0:00:04]} 7. Be2 {[%emt 0:00:04]} Bg7 {[%emt 0:00:02]} 8. h3 {[%emt 0:00:
01]} O-O {[%emt 0:00:09]} 9. Ngf3 {[%emt 0:00:01]} Nh5 {[%emt 0:00:22]} 10. Be3
{[%emt 0:00:22]} f5 {[%emt 0:00:08]} 11. Nb3 {[%emt 0:00:03]} Nf6 {[%emt 0:00:
16]} 12. O-O {[%emt 0:00:04]} Ne4 {[%emt 0:00:03]} 13. c4 {[%emt 0:00:22]} e6 {
[%emt 0:00:06]} 14. cxd5 {[%emt 0:00:27]} exd5 {[%emt 0:00:02]} 15. Bb5 {
[%emt 0:00:15]} Ne7 {[%emt 0:00:22]} 16. Bf4 {[%emt 0:00:18]} a6 {[%emt 0:00:
08]} 17. Be2 {[%emt 0:00:27]} Nc6 {[%emt 0:00:02]} 18. Ne5 {[%emt 0:00:09]} Bd7
{[%emt 0:00:20]} 19. Nxc6 {[%emt 0:00:07]} Bxc6 {[%emt 0:00:02]} 20. Be5 {
[%emt 0:00:11]} Bxe5 {[%emt 0:00:22]} 21. dxe5 {[%emt 0:00:01]} f4 {[%emt 0:00:
01]} 22. Qd4 {[%emt 0:00:12]} Qe7 {[%emt 0:00:04]} 23. Rfe1 {[%emt 0:00:07]}
Rae8 {[%emt 0:00:06]} 24. Bd3 {[%emt 0:00:05]} Qg5 {[%emt 0:00:13]} 25. f3 {
[%emt 0:00:02]} Ng3 {[%emt 0:00:18]} 26. e6 {[%emt 0:00:01]} Rf6 {[%emt 0:00:
16]} 27. Re5 {[%emt 0:00:03]} Qh4 {[%emt 0:00:03]} 28. Rae1 {[%emt 0:00:01]}
Nh5 {[%emt 0:00:03]} 29. Na5 {[%emt 0:00:08]} Ng7 {[%emt 0:00:02]} 30. e7 {
[%emt 0:00:03]} g5 {[%emt 0:00:05]} 31. Nxc6 {[%emt 0:00:03]} bxc6 {[%emt 0:00:
01]} 32. Bxa6 {[%emt 0:00:02]} Nf5 {[%emt 0:00:01]} 33. Qd2 {[%emt 0:00:05]}
Ne3 {[%emt 0:00:04]} 34. R1xe3 {[%emt 0:00:02]} fxe3 {[%emt 0:00:01]} 35. Qxe3
{[%emt 0:00:02]} h6 {[%emt 0:00:01]} 36. Re6 {[%emt 0:00:03]} Qf4 {[%emt 0:00:
04]} 37. Qe1 {[%emt 0:00:03]} Rxe6 38. Qxe6+ {[%emt 0:00:01]} Qf7 {[%emt 0:00:
03]} 39. Qxh6 {[%emt 0:00:08]} Qxe7 {[%emt 0:00:01]} 40. Qg6+ {[%emt 0:00:03]}
Kf8 {[%emt 0:00:01]} 41. Bd3 {[%emt 0:00:01]} Qe5 {[%emt 0:00:02]} 42. Qh6+ {
[%emt 0:00:02]} Ke7 {[%emt 0:00:01]} 43. Qh7+ {[%emt 0:00:02]} Kd6 {[%emt 0:00:
02]} 44. Qg6+ {[%emt 0:00:01]} Kc5 {[%emt 0:00:01]} 45. b4+ {[%emt 0:00:03]}
Kd4 {[%emt 0:00:02]} 46. Qxc6 {[%emt 0:00:03]} Kxd3 {[%emt 0:00:01]} 47. b5
Qe1+ 0-1